[Event "Krakow Championship-A 2022"]
[Site "Krakow"]
[Date "2022.06.27"]
[Round "4.5"]
[White "Seemann, Jakub"]
[Black "Zwardon, Vojtech"]
[Result "0-1"]
[ECO "B07"]
[WhiteElo "2363"]
[BlackElo "2482"]
[Annotator "TA"]
[PlyCount "140"]
[EventDate "2022.06.25"]
[EventType "swiss"]
[EventCountry "POL"]
[SourceTitle "playchess.com"]
[Source "ChessBase"]
[SourceQuality "1"]
[TimeControl "40/5400+30:1800+30"]

{[%evp 19,140,11,47,56,44,35,58,36,27,28,41,37,41,4,8,13,14,3,12,6,15,9,12,17,25,24,27,8,21,17,24,16,46,55,49,52,54,61,64,20,72,97,338,17,43,18,62,64,79,76,87,60,65,13,34,24,24,24,27,25,28,22,26,2,6,2,9,0,0,0,0,0,0,0,9,9,9,9,9,9,9,10,10,0,0,0,0,0,0,0,0,0,0,-16,-47,-100,-114,-224,-252,-412,-52,-256,-127,-234,-231,-261,-254,-251,-236,-363,0,0,0,-29971,-29972,-29972,-29973,-7524,-6291,-29980,-1290,-1872,-1016]} 1. e4 {[%emt 0:00:01]} d6 {[%emt 0:04:37]} 2. d4 {[%emt 0:00:20]} Nf6 {[%emt 0:00:02]} 3. Nc3 {[%emt 0:00:12]} e5 {[%emt 0:00:03]} 4. Nge2 {[%emt 0:00:30]} Nbd7 {[%emt 0:02:10]} 5. g3 {[%emt 0:00:44]} g6 {[%emt 0:00:59]} 6. Bg2 {[%emt 0:00:06]} Bg7 {[%emt 0:00:04]} 7. O-O {[%emt 0:00:21]} O-O {[%emt 0:00:50]} 8. h3 {[%emt 0:00:45]} c6 {[%emt 0:01:59]} 9. a4 {[%emt 0:00:23]} Qc7 {[%emt 0:00:34]} 10. Be3 {[%emt 0:03:39]} Re8 {[%emt 0:01:01]} 11. g4 {[%emt 0:01:25] B07: Pirc Defence: Miscellaneous Systems.} exd4 {[%emt 0:03:17]} 12. Bxd4 {[%emt 0:00:24]} (12. Nxd4 Nc5 $11) 12... Nc5 {[%emt 0:11:36]} 13. Ng3 {[%emt 0:03:44] White is slightly better.} Ne6 {[%emt 0:01:50]} 14. Be3 {[%emt 0:00:21]} d5 {[%emt 0:00:09]} 15. exd5 {[%emt 0:03:42]} Rd8 {[%emt 0:02:52]} 16. Nge2 {[%emt 0:08:36]} Nxd5 {[%emt 0:04:27]} 17. Nxd5 {[%emt 0:04:56]} cxd5 {[%emt 0:00:05]} 18. c3 {[%emt 0:11:17] Against d4} b6 $1 {[%emt 0:00:40]} 19. Nd4 {[%emt 0:01:03] [#]} (19. Bxd5 Bb7 20. c4 Bxb2 $15) 19... Nf4 $146 {[%emt 0:08:19]} ({Predecessor:} 19... Ba6 20. Nxe6 fxe6 21. Re1 Bb7 22. Bg5 Re8 23. Qd2 Qc4 24. Bf1 Qc5 25. Be3 Qc7 {½-½ (75) Kallio,H (2240)-Kiik,K (2380) Jyvaskyla 1997}) 20. Qd2 {[%emt 0:00:27]} Nxg2 {[%emt 0:01:12]} 21. Kxg2 {[%emt 0:00:02]} Bb7 {[%emt 0:07:32]} 22. Rfe1 {[%emt 0:01:24]} Re8 {[%emt 0:02:28]} 23. f3 {[%emt 0:01:04]} Qd7 {[%emt 0:01:36]} 24. a5 {[%emt 0:01:08]} bxa5 {[%emt 0:05:15]} 25. Rxa5 {[%emt 0:00:22]} h5 {[%emt 0:00:10]} 26. Raa1 {[%emt 0:01:42]} a5 {[%emt 0:05:24]} 27. Bh6 {[%emt 0:02:16]} Rxe1 {[%emt 0:04:27]} 28. Rxe1 {[%emt 0:01:18]} Bh8 {[%emt 0:00:28]} 29. Qe3 {[%emt 0:13:11]} (29. gxh5 {feels hotter.} Bc8 30. Kf2 Ra6 31. h4) 29... hxg4 {[%emt 0:03:46]} (29... a4 $11) 30. hxg4 $16 {[%emt 0:00:08][%cal Od4f5] Hoping for Nf5!} (30. fxg4 a4 $11) 30... a4 $2 {[%emt 0:00:16] [#]} (30... Bc6 $16) 31. Bf4 $2 {[%emt 0:01:14]} (31. Nf5 $1 $18 {[%cal Rf5e7][%mdl 512] Strongly threatening Ne7+.} Bf6 32. Bg5) 31... Bg7 {[%emt 0:03:10]} 32. Kg3 {[%emt 0:03:22]} (32. Bg5 $5 {[%cal Re3f4]}) 32... Bc6 {[%emt 0:04:56]} 33. Rh1 {[%emt 0:03:15]} ({Much worse is} 33. Nxc6 Qxc6 34. Rd1 Re8 $11) 33... Re8 {[%emt 0:02:03]} 34. Qd2 {[%emt 0:00:08] Threatens to win with Qh2.} f6 {[%emt 0:04:28]} 35. Qd3 {[%emt 0:08:09]} Kf7 {[%emt 0:02:45]} 36. Rh7 {[%emt 0:02:51]} (36. Qa6 $14 Bb7 37. Qb6) 36... Rh8 {[%emt 0:01:24]} 37. Rxh8 {[%emt 0:00:20]} Bxh8 {[%emt 0:00:02]} 38. Qa6 {[%emt 0:01:33]} Bb7 {[%emt 0:00:25]} 39. Qb6 {[%emt 0:00:45]} Bg7 {[%emt 0:02:04]} 40. Bd6 {[%emt 0:17:09]} Bh6 {[%emt 0:03:13]} 41. Bc7 {[%emt 0:32:11]} Bc8 {[%emt 0:34:01]} 42. Nb5 {[%emt 0:00:12]} Bf8 {[%emt 0:02:21]} 43. Kf2 {[%emt 0:00:00]} Qe6 {[%emt 0:00:00]} 44. Bd6 {[%emt 0:00:00]} Bd7 {[%emt 0:00:00]} 45. Qc7 {[%emt 0:00:00]} Bh6 {[%emt 0:00:00] White must now prevent ...Qe3+.} 46. Bc5 {[%emt 0:00:00] Inhibits Qe3+.} Qc6 {[%emt 0:00:00]} 47. Nd6+ {[%emt 0:00:00]} Ke6 {[%emt 0:00:00]} 48. Qa7 {[%emt 0:00:00]} Bf4 $132 {[%emt 0:00:00][%mdl 2048] Black puts up resistance. Chess con chili.} 49. Nb7 {[%emt 0:00:00] Nd8+ would kill now.} ({Avoid the trap} 49. Ne8 $2 Kf7 50. Nxf6 Kxf6 $19) 49... Bc7 {[%emt 0:00:00] Against Nd8+} (49... Qb5 $2 {gets mated.} 50. Nd8+ Ke5 51. Qc7#) 50. Bd4 {[%emt 0:00:00]} Ke7 {[%emt 0:00:00]} 51. Kg2 {[%emt 0:00:00]} Qb5 {[%emt 0:00:00]} 52. Bf2 {[%emt 0:00:00]} Bc6 {[%emt 0:00:00]} 53. Qe3+ {[%emt 0:00:00]} Be5 {[%emt 0:00:00] A strong pair of Bishops.} 54. Nc5 {[%emt 0:00:00]} Qxb2 {[%emt 0:00:00]} 55. Nd3 {[%emt 0:00:00]} Qxc3 {[%emt 0:00:00]} 56. Qa7+ {[%emt 0:00:18]} Ke8 {[%emt 0:00:00]} 57. Bc5 {[%emt 0:02:21]} Qc2+ $17 {[%emt 0:00:15]} 58. Nf2 {[%emt 0:03:06]} (58. Kg1 $17 {keeps fighting.} Qh2+ 59. Kf1) 58... Kd8 $1 $19 {[%emt 0:01:44]} 59. g5 $2 {[%emt 0:02:08]} (59. Qe7+ {was worth a try.} Kc8 60. Bd6 Bxd6 61. Qxd6) 59... Qf5 $2 {[%emt 0:01:53]} (59... fxg5 $19 60. Qe7+ Kc8 61. Qf8+ Kb7 62. Qf7+ Bc7) 60. Ng4 $2 {[%emt 0:02:11]} ({White should try} 60. gxf6 $1 $15 Qxf6 61. Ng4) 60... Qxg5 {[%emt 0:01:23]} (60... d4 $1 $19 61. Qe7+ Kc8 62. Qf8+ Kb7 63. Nxe5 Qxg5+ 64. Kf2 Qd2+ 65. Kg3 Qe1+ 66. Kg2 Qe2+ 67. Kg1 Qxe5 68. Qe7+ Ka6 69. Qa7+ Kb5 70. Bxd4 Qg3+ 71. Kf1 Qxf3+ 72. Ke1 Qg3+ 73. Ke2 Bf3+ 74. Kd3 Bd5+ 75. Be3 Qd6) 61. Bb6+ {[%emt 0:01:44]} (61. Qe7+ $17 Kc8 62. Qf8+ Kb7 63. Be3) 61... Kc8 $1 {[%emt 0:01:27][%cal Od5d4]} 62. Qa6+ {[%emt 0:00:15]} Kd7 {[%emt 0:00:41]} 63. Qa7+ {[%emt 0:00:18]} Ke6 {[%emt 0:01:28][%cal Od5d4]} 64. Qg7 {[%emt 0:02:21] [#]} (64. Be3 $142 Qf5 65. Qc5) 64... d4 $2 {[%emt 0:02:03]} (64... Qd2+ $1 $19 65. Bf2 Bd4) 65. Qg8+ $11 {[%emt 0:00:29]} Ke7 {[%emt 0:00:01]} 66. Bc5+ $2 {[%emt 0:00:39][%mdl 8192] [#]} (66. Qg7+ $11 Ke6 67. Qg8+ Kd6 68. Qf8+ Ke6 69. Qg8+) 66... Kd7 $1 {[%emt 0:00:05]} 67. Qf7+ {[%emt 0:00:21]} Kc8 {[%emt 0:00:11]} 68. Qe6+ {[%emt 0:00:10]} Kb7 {[%emt 0:00:11] ( -> ...Bc7)} 69. Kh3 {[%emt 0:01:09]} Qf5 {[%emt 0:00:33]} (69... Bc7 $142 70. Qe2 Qxc5 71. Kg2 Qf5 72. Kf2 d3 73. Qd1 a3 74. Kg1 Qxf3 75. Qxf3 Bxf3 76. Nh2 d2 77. Nxf3 d1=Q+ 78. Kf2 a2 79. Ng1 a1=Q 80. Ne2 Qe5 81. Kg2 Qexe2+ 82. Kh3 Qh2#) 70. Qe7+ {[%emt 0:00:47]} Qd7 {[%emt 0:00:22] Never resign too early!  Weighted Error Value: White=0.30/Black=0.29 (precise)} 0-1

[Event "Krakow Championship-A 2022"]
[Site "Krakow"]
[Date "2022.06.27"]
[Round "4.6"]
[White "Leniart, Arkadiusz"]
[Black "Rudolf, Michal"]
[Result "0-1"]
[ECO "B10"]
[WhiteElo "2473"]
[BlackElo "2361"]
[Annotator "TA"]
[PlyCount "76"]
[EventDate "2022.06.25"]
[EventType "swiss"]
[EventCountry "POL"]
[SourceTitle "playchess.com"]
[Source "ChessBase"]
[SourceQuality "1"]
[TimeControl "40/5400+30:1800+30"]

{[%evp 9,75,-8,2,7,8,3,16,-2,12,13,16,-13,-26,-50,-24,-35,-48,-38,-39,-50,-30,-6,-7,0,0,-37,-8,-64,0,0,0,-8,0,0,41,32,48,13,61,56,63,58,64,41,36,47,116,18,15,-51,-8,-6,0,0,0,0,0,-14,-21,-227,-234,-229,-214,-308,-77,-120,-97,-29999]} 1. e4 c6 2. Nf3 d5 {[%emt 0:01:09]} 3. d3 {[%emt 0:02:16]} dxe4 {[%emt 0:00:31]} 4. dxe4 Qxd1+ {[%emt 0:00:06]} 5. Kxd1 {[%emt 0:00:00]} Nd7 {[%emt 0:01:04]} 6. Nbd2 {[%emt 0:20:44] B10: Caro-Kann: 2 d3 and 2 c4.} Ngf6 {[%emt 0:04:01][%cal Bg8f6,Bf6g4,Bg4e5][%mdl 32]} 7. Ne1 {[%emt 0:00:52]} Ng4 {[%emt 0:04:13] [#]} 8. Ke2 $146 {[%emt 0:01:23] The position is equal.} ({Predecessor:} 8. Nd3 g6 9. Nc4 Bg7 10. Bf4 Nb6 11. Nxb6 axb6 12. f3 Nf6 13. c3 Be6 14. Kc2 {½-½ (70) Rozum,I (2546)-Kukhmazov,A (2442) Moscow 2021}) 8... b6 {[%emt 0:04:06]} 9. f3 {[%emt 0:08:43]} Ba6+ {[%emt 0:00:08]} 10. c4 {[%emt 0:00:39]} (10. Nd3 $5 {[%cal Rf3g4]} Nge5 11. Kf2 Nxd3+ 12. Bxd3 Bxd3 13. cxd3 $11) 10... Nge5 {[%emt 0:00:06]} 11. Kf2 {[%emt 0:04:16]} g5 {[%emt 0:05:13]} 12. b4 {[%emt 0:06:21]} Bg7 {[%emt 0:03:27][%cal Oe5g4] aiming for ...Ng4+!} 13. Rb1 {[%emt 0:00:08]} c5 {[%emt 0:01:46]} 14. a3 {[%emt 0:06:51]} cxb4 {[%emt 0:01:39]} 15. axb4 {[%emt 0:00:08]} Rc8 {[%emt 0:00:08]} 16. b5 {[%emt 0:09:56]} Bb7 {[%emt 0:00:06]} 17. h4 {[%emt 0:00:11]} gxh4 {[%emt 0:02:00]} 18. Bb2 {[%emt 0:03:39]} ({White should play} 18. Rxh4 $11 Ng6 19. Rh1) 18... O-O {[%emt 0:00:44] Black is more active.} ({Better is} 18... Nc5 $15 19. Rxh4 Rd8 20. Bxe5 Bxe5) 19. Rxh4 {[%emt 0:01:04]} Rfd8 {[%emt 0:03:12]} 20. Ke3 {[%emt 0:02:52]} Ng6 {[%emt 0:06:44]} 21. Rh1 {[%emt 0:01:05]} e5 {[%emt 0:06:32]} 22. Nd3 {[%emt 0:04:17]} Bf6 {[%emt 0:01:07]} 23. g3 {[%emt 0:06:43]} Nc5 {[%emt 0:01:53]} (23... a6 $11) 24. Rh5 $14 {[%emt 0:00:55][%cal Rd3e5]} Nxd3 {[%emt 0:03:10]} 25. Bxd3 {[%emt 0:00:13]} Rd7 {[%emt 0:00:42]} 26. Be2 {[%emt 0:03:38]} Be7 {[%emt 0:06:16] ...Bc5+ is the strong threat.} 27. Nb3 {[%emt 0:01:07]} a5 {[%emt 0:00:52] [#]} (27... a6 $14) 28. bxa6 {[%emt 0:02:59]} (28. Ra1 $1 $16) 28... Bxa6 $11 {[%emt 0:00:06]} 29. f4 {[%emt 0:01:11]} (29. Bxe5 $11 Rc5 30. f4 Nxe5 31. Rxe5 Rxe5 32. fxe5) 29... Bxc4 {[%emt 0:02:43]} (29... Rxc4 $5 {[%cal Re5f4]} 30. f5 Rxe4+ 31. Kxe4 Bxe2 $15) 30. Bxc4 {[%emt 0:02:57]} exf4+ {[%emt 0:08:02]} 31. gxf4 {[%emt 0:00:04]} Rxc4 {[%emt 0:00:05]} 32. f5 {[%emt 0:00:08]} Rb4 {[%emt 0:00:21]} 33. Bc3 {[%emt 0:01:23]} Rb5 {[%emt 0:00:54][%cal Oh7h6]} 34. e5 $2 {[%emt 0:05:22]} (34. Bd4 $11) 34... Nxe5 $19 {[%emt 0:01:40] And now ...Rd3+ would win.} 35. Rg1+ {[%emt 0:00:05]} Kf8 {[%emt 0:02:02]} 36. Rxh7 {[%emt 0:01:39]} (36. Ke4 {was worth a try.} Bf6 37. Rh6) 36... Bg5+ $2 {[%emt 0:02:58]} (36... Bf6 $19 {has better winning chances.} 37. Nd4 Rc5) 37. Ke4 {[%emt 0:01:20]} Rxb3 {[%emt 0:00:42] The board is on fire.} 38. Bxe5 {[%emt 0:01:47][%mdl 8192]} ({Wrong is} 38. Rh8+ $2 Ke7 39. Rc8 {[#]} Bf6 $1 $19) (38. Rxg5 $17 Rxc3 39. f6) 38... Re3# {Weighted Error Value: White=0.47/Black=0.26 (precise)} 0-1

[Event "Krakow Championship-A 2022"]
[Site "Krakow"]
[Date "2022.06.27"]
[Round "4.7"]
[White "Holtel, Jasper"]
[Black "Kozak, Antoni"]
[Result "1-0"]
[ECO "A37"]
[WhiteElo "2347"]
[BlackElo "2459"]
[Annotator "TA"]
[PlyCount "95"]
[EventDate "2022.06.25"]
[EventType "swiss"]
[EventCountry "POL"]
[SourceTitle "playchess.com"]
[Source "ChessBase"]
[SourceQuality "1"]
[TimeControl "40/5400+30:1800+30"]

{[%evp 16,94,8,8,8,4,26,0,0,0,29,0,0,-17,0,0,0,0,0,0,25,0,0,-8,0,0,102,87,174,152,158,9,13,17,0,-118,8,23,13,0,0,0,180,-12,-14,-164,-185,-182,-184,-177,-171,-240,0,-35,-14,-14,392,362,354,375,401,395,29980,29981,29981,29982,29982,29983,29983,29984,29984,29985,29989,29990,29990,29991,29994,29995,29996,29997,29999]} 1. Nf3 {[%emt 0:01:03]} c5 {[%emt 0:00:50]} 2. g3 {[%emt 0:00:26]} Nc6 {[%emt 0:00:55]} 3. Bg2 {[%emt 0:00:14]} g6 {[%emt 0:00:05]} 4. c4 {[%emt 0:00:13]} Bg7 {[%emt 0:00:09]} 5. Nc3 {[%emt 0:00:08]} e6 {[%emt 0:00:20]} 6. d4 {[%emt 0:01:13]} cxd4 {[%emt 0:00:05]} 7. Nb5 {[%emt 0:00:09]} d5 {[%emt 0:00:14]} 8. cxd5 {[%emt 0:00:23]} Qa5+ {[%emt 0:12:11]} 9. Nd2 {[%emt 0:00:29]} exd5 {[%emt 0:00:06] A37: Symmetrical English vs ...g6: 4 Bg2 Bg7 5 Nf3.} 10. Nd6+ {[%emt 0:03:21]} Kf8 {[%emt 0:00:20]} 11. Nxc8 {[%emt 0:09:30]} (11. O-O {seems wilder.} Nf6 12. Nb3 Qb6 13. a4) 11... Rxc8 {[%emt 0:00:14] The position is equal.} 12. O-O {[%emt 0:00:09]} Nge7 {[%emt 0:20:07]} 13. Nb3 {[%emt 0:06:42]} Qb6 {[%emt 0:07:21]} 14. e3 {[%emt 0:02:54] [#]} dxe3 $146 {[%emt 0:00:38]} ({Predecessor:} 14... Bf6 15. exd4 Kg7 16. Be3 Rcd8 17. g4 h6 18. f4 Kh7 19. Qd2 Qb4 20. Qf2 Rhe8 {0-1 (47) Ding,L (2805)-So,W (2754) Abidjan 2019}) 15. Bxe3 {[%emt 0:00:12]} d4 {[%emt 0:02:51]} 16. Bf4 {[%emt 0:00:35]} Rd8 {[%emt 0:04:49]} 17. Rc1 {[%emt 0:09:44]} h6 {[%emt 0:06:37]} (17... d3 18. Re1) 18. Qf3 {[%emt 0:13:02][%mdl 1024] White has compensation.} Kg8 {[%emt 0:02:05]} 19. Rfe1 {[%emt 0:04:15][%cal Oe1e7]} Nd5 {[%emt 0:05:41][%cal Od4d3]} 20. Bd2 {[%emt 0:06:22]} Bf8 {[%emt 0:07:29] Prevents Rc5.} (20... d3 $11) 21. h4 $1 $16 {[%emt 0:12:48]} a5 {[%emt 0:12:06]} (21... Bb4 $16 {was necessary.}) 22. h5 $18 {[%emt 0:00:37]} g5 {[%emt 0:00:05]} 23. Nxa5 {[%emt 0:03:33]} Nxa5 $11 {[%emt 0:01:35]} 24. Qf5 {[%emt 0:00:58]} Nb4 {[%emt 0:03:31]} 25. f4 {[%emt 0:10:27]} (25. Bxb4 $11 {keeps the balance.} Bxb4 26. Re5) 25... Rh7 {[%emt 0:05:14]} (25... d3+ $17 26. Kh1 Qf2 27. Bxb4 (27. Qxa5 $2 b6 $19) 27... Bxb4) 26. Be4 {[%emt 0:05:24][%csl Ge4][%cal Rf5h7] A strong pair of Bishops.} Rg7 {[%emt 0:00:06] Threatens to win with ...d3+.} 27. fxg5 {[%emt 0:00:13]} hxg5 {[%emt 0:06:00]} 28. h6 $40 {[%emt 0:00:58][%mdl 128] White has some attack.} Rg6 {[%emt 0:00:24]} (28... Qxh6 $11 {and Black stays safe.} 29. Qxa5 b6) 29. h7+ $2 {[%emt 0:01:40]} (29. Rf1 $18 Qe6 30. Qxa5) 29... Kh8 {[%emt 0:00:04] Hoping for ...Rf6.} 30. Qxf7 {[%emt 0:03:16]} (30. Rc8 $1 $11 d3+ 31. Kg2) 30... Rg7 $19 {[%emt 0:00:33]} 31. Qf5 {[%emt 0:00:16] [#] Black must now prevent Rf1.} Nac6 $1 {[%emt 0:01:19] Strongly threatening ...d3+.} 32. Rf1 {[%emt 0:01:20] [#] White threatens Qxf8+ and mate.} Be7 {[%emt 0:00:35] aiming for ...d3+.} 33. Kg2 {[%emt 0:02:08]} (33. Rf2 $142) 33... Na6 $2 {[%emt 0:00:50]} (33... Nxa2 $19 34. Rxc6 bxc6) 34. b4 {[%emt 0:00:26]} (34. Bxc6 $5 bxc6 35. Ba5 Qxb2+ 36. Rc2 $11) 34... Nc7 {[%emt 0:01:20] Against b5} (34... Bxb4 35. Bxg5 Qc7 36. Bf6 $16) (34... Ncxb4 35. Rc8 Qd6 36. Bxb7 $16) 35. a4 $1 {[%emt 0:01:27][%cal Ba2a4,Ba4a5][%mdl 32]} Nxb4 $2 {[%emt 0:00:26][%mdl 8192]} (35... Bxb4 36. Bxg5 Na6 37. Bf6 $18) (35... Re8 $11 {and Black has nothing to worry.} 36. a5 Qb5 37. Qxb5 Nxb5) 36. a5 $18 {[%emt 0:00:31]} Qd6 {[%emt 0:00:32] ...Nbd5 is the strong threat.} 37. Bxb4 {[%emt 0:00:20][%mdl 64] Deflection} Qxb4 {[%emt 0:00:01]} 38. Rxc7 {[%emt 0:00:16] Rc8 would kill now. The board is on fire.} g4 $2 {[%emt 0:01:03]} (38... d3 $18 39. Rxb7 (39. Qe5 Qd6 $16) 39... Qd6) 39. Rc8 {[%emt 0:00:31] White mates.} ({Not} 39. Qe5 Qd6 40. Qxd6 Bxd6 41. Rxg7 (41. Rxb7 Rxb7 42. Bxb7 d3 $14) 41... Kxg7 $16) 39... Qd6 {[%emt 0:00:26]} 40. Rxd8+ {[%emt 0:01:19]} Qxd8 {[%emt 0:00:04]} 41. Rc1 {[%emt 0:05:03]} Rg5 {[%emt 0:02:53]} 42. Qe6 {[%emt 0:02:56]} Bc5 {[%emt 0:00:33]} 43. Bf5 {[%emt 0:00:48]} b6 {[%emt 0:05:05]} 44. Qe5+ {[%emt 0:03:58]} Rg7 {[%emt 0:00:02]} 45. axb6 {[%emt 0:00:30]} d3 {[%emt 0:00:18]} 46. b7 {[%emt 0:00:51]} Bg1 {[%emt 0:00:11]} 47. Rc8 {[%emt 0:00:32][%cal Rc8d8]} Bh2 {[%emt 0:00:02]} 48. Rxd8# {Never resign too early!  Weighted Error Value: White=0.26 (precise) /Black=0.67} 1-0